Cogmind - Beta 14 @@@ ROGUE MODE // 2024.08.08 @ 23:35:07 // Winter2019/RPGLIKE Player: badjay Result: Destroyed by Y-45 Defender with Heavy Assault Rifle Performance ------------- Evolutions (1) 500 Regions Visited (3) 600 Robots Destroyed (46) 230 Value Destroyed (989) 989 Prototype IDs (3) 60 Alien Tech Used (0) 0 Bonus (50) 50 TOTAL SCORE: 2429 Bonus ------- High Alert Combat Kills 36 Follower Combat Kills 14 Cogmind --------- Core Integrity 0/600 Matter 300/300 Energy 280/280 System Corruption 0% Temperature Cool (9) Movement Flying (34) Location -9/Materials Parts ------- > --- POWER (1) -------- Cooled Ion Engine > --- PROPULSION (2) --- Flight Unit VTOL Module > --- UTILITY (1) ------ Transport Network Coupler > --- WEAPON (3) ------- Katana Katana Katana > --- INVENTORY (0) ---- (None) Peak State ------------ > --- POWER ------------ Cooled Ion Engine > --- PROPULSION ------- Flight Unit VTOL Module > --- UTILITY ---------- Transport Network Coupler > --- WEAPON ----------- Katana Katana Katana > --- INVENTORY -------- (None) [Rating: 16] Favorites ----------- Power Light Ion Engine Engine Light Ion Engine Propulsion Flight Unit Flight Unit Flight Unit Utility Transport Network Coupler Processor Transport Network Coupler Protection Medium Armor Plating Weapon Hammer Impact Weapon Hammer Slashing Weapon Katana Build | -11 -10 -10 -9 ------- Run | Yrd Mat Min Mat Slots Evolved 3 | . 2 . 1 Power . | . . . . Propulsion 1 | . . . 1 Utility . | . . . . Weapon 2 | . 2 . . Parts Attached 14 | . 4 2 8 Power 3 | . 1 1 1 Engine 3 | . 1 1 1 Core . | . . . . Reactor . | . . . . Propulsion 3 | . 1 1 1 Treads . | . . . . Leg . | . . . . Wheel . | . . . . Hover . | . . . . Flight 3 | . 1 1 1 Utility 3 | . . . 3 Device . | . . . . Storage . | . . . . Processor 1 | . . . 1 Hackware . | . . . . Protection 2 | . . . 2 Artifact . | . . . . Weapon 5 | . 2 . 3 Energy Gun . | . . . . Energy Cannon . | . . . . Ballistic Gun . | . . . . Ballistic Cannon . | . . . . Launcher . | . . . . Special Weapon . | . . . . Impact Weapon 2 | . 2 . . Slashing Weapon 3 | . . . 3 Piercing Weapon . | . . . . Special Melee Weapon . | . . . . Unidentified Prototypes . | . . . . Parts Lost 1 | . . 1 . Power . | . . . . Propulsion 1 | . . 1 . Utility . | . . . . Weapon . | . . . . Highest Loss Streak 1 | . . 1 . To Critical Strikes . | . . . . Average Slot Usage (%) 52 | . 46 45 75 Engine 3 | . . . 14 Flight 17 | . 21 11 19 Impact Weapon 24 | . 24 33 10 Slashing Weapon 5 | . . . 26 Peak Build Rating 16 | . 3 4 16 Average Rating 4 | . 2 2 10 On Entrance 1 | . . 3 4 Naked Turns 8 | . 8 . . Heaviest Build 14 | . 4 7 14 Greatest Support 18 | 3 4 9 18 Greatest Overweight (x) 1 | . . 1 . Average Overweight (x) . | . . . . Largest Inventory Capacity . | . . . . Average Capacity . | . . . . Most Carried . | . . . . Average Carried . | . . . . Final Capacity . | . . . . Final Carried . | . . . . Class Distribution -------------------- 69% | Hacker-Gladiator 28% | Hacker-Mutant Dominant Class ---------------- Hacker-Mutant | -10/Materials Hacker-Gladiator | -10/Mines Hacker-Gladiator | -9/Materials Resources | -11 -10 -10 -9 ----------- Run | Yrd Mat Min Mat Matter Collected 340 | 200 40 10 90 Remotely . | . . . . Salvage Created 1538 | . 488 469 581 Parts 56 | . 20 14 22 Haulers Intercepted 5 | . 2 . 3 Recyclers Shooed 2 | . . 2 . Parts Field Recycled . | . . . . Retrieved Matter . | . . . . Parts Self-Destructed . | . . . . Prevented . | . . . . Kills | -11 -10 -10 -9 ------- Run | Yrd Mat Min Mat Combat Hostiles Destroyed 32 | . 12 15 5 Melee 23 | . 9 10 4 Classes Destroyed 9 | . 5 2 2 Builder 1 | . 1 . . Tunneler 1 | . . 1 . Hauler 5 | . 2 . 3 Recycler 2 | . . 2 . Watcher 5 | . 3 . 2 Swarmer 13 | . 6 7 . Grunt 17 | . 6 8 3 Duelist 1 | . . . 1 Sentry 1 | . . . 1 Best Kill Streak 7 | . 7 5 7 Combat Bots Only 4 | . 4 4 3 Max Kills in Single Turn 1 | . 1 1 1 Gunslinging . | . . . . Exploded . | . . . . Melee 1 | . 1 1 1 Uniques/NPCs Destroyed . | . . . . Combat | -11 -10 -10 -9 -------- Run | Yrd Mat Min Mat Hostile Shots Fired 184 | . 85 83 16 Missed 63 | . 37 18 8 Damage Taken 1311 | . 492 686 133 Core 1173 | . 436 623 114 Absorbed by Shields . | . . . . Redirected to Core 443 | . 177 197 69 Core Remaining (%) 58 | 100 . 16 . Volleys Fired . | . . . . Largest . | . . . . Hottest . | . . . . Shots Fired . | . . . . Gun . | . . . . Cannon . | . . . . Launcher . | . . . . Special . | . . . . Kinetic . | . . . . Thermal . | . . . . Explosive . | . . . . Electromagnetic . | . . . . Robot Hit Streak . | . . . . Robot Miss Streak . | . . . . Penetration Max . | . . . . Secondary Targets . | . . . . Shots Hit Robots 92 | . 30 39 23 Core Hits 24 | . 8 8 8 Critical Kills 4 | . 3 1 . Critical Parts Destroyed 12 | . 6 4 2 Critical Strikes 17 | . 9 5 3 Smash 16 | . 9 5 2 Sever 1 | . . . 1 Melee Attacks 117 | . 43 48 26 Impact 100 | . 43 48 9 Slashing 17 | . . . 17 Piercing . | . . . . Sneak Attacks 9 | . 4 3 2 Combat Hostiles . | . . . . Follow-up Attacks 11 | . . 8 3 Damage Inflicted 2878 | . 925 1134 819 Guns . | . . . . Cannons . | . . . . Explosions . | . . . . Melee 2878 | . 925 1134 819 Ramming . | . . . . Kinetic . | . . . . Thermal . | . . . . Explosive . | . . . . Electromagnetic . | . . . . Impact 2290 | . 925 1134 231 Slashing 588 | . . . 588 Piercing . | . . . . Highest Corruption . | . . . . Average Corruption . | . . . . Corruption Purged . | . . . . Corruption Blocked . | . . . . Overload Shots . | . . . . Overflow Damage 573 | . 262 210 101 Projectiles . | . . . . Explosions . | . . . . Melee 573 | . 262 210 101 Knockbacks 8 | . 4 4 . Impact 8 | . 4 4 . Kinetic . | . . . . Secondary . | . . . . Self-Inflicted Damage . | . . . . Shots . | . . . . Rammed . | . . . . Targets Rammed . | . . . . Kicked . | . . . . Crushed . | . . . . Highest Temperature 6 | . 6 . . Average Temperature 6 | . 6 . . Received Heat Transfer 465 | . 195 228 42 Siege Activations . | . . . . Robots Corrupted 18 | . 8 8 2 Combat Hostiles 9 | . 3 5 1 Parts Fried 19 | . 8 10 1 Impact Corruptions 38 | . 17 18 3 Robots Melted . | . . . . Combat Hostiles . | . . . . Parts Melted . | . . . . Heat Transferred . | . . . . Parts Sabotaged . | . . . . Parts Stolen . | . . . . Parts Stripped . | . . . . Power Chain Reactions . | . . . . Alert | -11 -10 -10 -9 ------- Run | Yrd Mat Min Mat Peak Influence 526 | . 394 526 424 Initial 204 | . . 38 204 Average 269 | . 219 325 282 Maximum Alert Level 2 | . 1 2 2 Low Security (%) 24 | 100 36 22 . Level 1 55 | . 63 26 93 Level 2 20 | . . 51 6 Level 3 . | . . . . Level 4 . | . . . . Level 5 . | . . . . High Security . | . . . . Max Security . | . . . . Squads Dispatched 4 | . 3 . 1 Investigation . | . . . . Extermination . | . . . . Reinforcement 4 | . 3 . 1 Assault . | . . . . Garrison . | . . . . Intercept . | . . . . Searches Triggered . | . . . . Construction Impeded . | . . . . Haulers Reinforced . | . . . . Active Scanning Responses . | . . . . Cargo Convoy Interrupts . | . . . . Stealth | -11 -10 -10 -9 --------- Run | Yrd Mat Min Mat Distress Signals 8 | . 6 . 2 Communications Jammed . | . . . . Distress Signals . | . . . . Times Spotted 53 | . 25 18 10 Peak Tracking Total 9 | . 9 4 4 Tactical Retreats 4 | . 2 1 1 Traps | -11 -10 -10 -9 ------- Run | Yrd Mat Min Mat Traps Triggered . | . . . . Indirectly . | . . . . Trap Hack Attempts . | . . . . Triggered . | . . . . Disarmed . | . . . . Reprogrammed . | . . . . Reused . | . . . . Traps Extracted . | . . . . Installed . | . . . . Triggered . | . . . . Machines | -11 -10 -10 -9 ---------- Run | Yrd Mat Min Mat Machines Disabled 1 | . . 1 . Max in Single Turn 1 | . . 1 . Machines Repaired . | . . . . Machines Dismantled . | . . . . Machines Sabotaged . | . . . . Overloaded Fab Kills . | . . . . Hacking | -11 -10 -10 -9 --------- Run | Yrd Mat Min Mat Machines Accessed 6 | . 4 1 1 Terminals 6 | . 4 1 1 Fabricators . | . . . . Repair Stations . | . . . . Recycling Units . | . . . . Scanalyzers . | . . . . Garrison Access . | . . . . Total Hacks 36 | . 27 3 6 Successful 21 | . 18 1 2 Failed 14 | . 8 2 4 Catastrophic . | . . . . Database Lockouts 1 | . 1 . . Manual 20 | . 14 . 6 Terminals 36 | . 27 3 6 Fabricators . | . . . . Repair Stations . | . . . . Recycling Units . | . . . . Scanalyzers . | . . . . Garrison Access . | . . . . Terminal Hacks 15 | . 14 1 . Prototype ID Bank 2 | . 2 . . Level Access Points 1 | . 1 . . Branch Access Points 1 | . 1 . . Terminal Index 1 | . 1 . . Alert Level 3 | . 3 . . Unreport Threat 3 | . 3 . . Investigation Status 1 | . 1 . . Hauler Manifests 1 | . 1 . . Zone Layout 2 | . 1 1 . Fabricator Hacks . | . . . . Repair Station Hacks . | . . . . Recycling Unit Hacks . | . . . . Scanalyzer . | . . . . Garrison Access Hacks . | . . . . Unauthorized Hacks 6 | . 4 . 2 Terminals 6 | . 4 . 2 Botnet 4 | . 3 . 1 Disrupt 2 | . 1 . 1 Fabricators . | . . . . Repair Stations . | . . . . Recycling Units . | . . . . Scanalyzers . | . . . . Garrison Access . | . . . . Data Cores Recovered . | . . . . Used . | . . . . Hacking Detections 5 | . 3 1 1 Full Trace Events . | . . . . Feedback Events . | . . . . Feedback Blocked . | . . . . Robot Schematics Acquired . | . . . . Robots Built . | . . . . Authchips . | . . . . Time . | . . . . Total Robot Build Rating . | . . . . Part Schematics Acquired . | . . . . Parts Built . | . . . . Authchips . | . . . . Time . | . . . . Total Part Build Rating . | . . . . Parts Repaired . | . . . . Time . | . . . . Parts Recycled . | . . . . Recycled Matter . | . . . . Retrieved Matter . | . . . . Retrieved Components . | . . . . Parts Scanalyzed . | . . . . Part Schematics Acquired . | . . . . Parts Damaged . | . . . . Bothacking | -11 -10 -10 -9 ------------ Run | Yrd Mat Min Mat Used RIF Installer . | . . . . Robots Hacked . | . . . . Non-combat . | . . . . Combat . | . . . . Robot Hacks Applied . | . . . . Relay Couplers Released . | . . . . Fabnet Peak Effective % . | . . . . Robots Rewired . | . . . . Allies Hacked . | . . . . Hacks Repelled . | . . . . Allies | -11 -10 -10 -9 -------- Run | Yrd Mat Min Mat Total Allies 1 | . . 1 . Largest Group 1 | . . 1 . Highest-Rated Group 31 | . . 31 . Highest-Rated Ally 31 | . . 31 . Total Orders . | . . . . Ally Attacks 14 | . . 14 . Total Damage 189 | . . 189 . Kills 2 | . . 2 . Allies Corrupted . | . . . . Allies Melted . | . . . . Intel | -11 -10 -10 -9 ------- Run | Yrd Mat Min Mat Robot Analysis Total . | . . . . Derelict Logs Recovered 2 | . . 2 . Drone Launches . | . . . . Drone Recoveries . | . . . . Exploration | -11 -10 -10 -9 ------------- Run | Yrd Mat Min Mat Turns Passed 980 | 12 399 360 209 Spaces Moved 1426 | 25 599 512 290 Core 100 | 25 15 60 . Treads . | . . . . Legs . | . . . . Wheels . | . . . . Hover . | . . . . Flight 1326 | . 584 452 290 Fastest Speed 34 | 50 40 40 34 Average Speed 41 | 50 40 44 38 Slowest Speed 100 | 50 50 100 40 Overloaded Moves . | . . . . Propulsion Burnouts . | . . . . Robots Hopped 2 | . . 1 1 Cave-ins Triggered . | . . . . Exploration Rate (%) 54 | 3 91 94 29 Regions Visited 3 Branch Regions 1 Pre-discovered Areas . | . . . . Known Exits Taken 2 | . 1 1 . Unknown Exits Taken 1 | 1 . . . Scrap Searched 1 | . . 1 . Spaces Dug . | . . . . Terrain Destroyed . | . . . . Melee . | . . . . Projectile . | . . . . AOE . | . . . . Terrain Rammed . | . . . . Walls Destroyed . | . . . . Machines Disabled . | . . . . Actions | -11 -10 -10 -9 --------- Run | Yrd Mat Min Mat Total 1628 | 24 679 573 352 Wait 62 | . 22 8 32 Move 1419 | 24 598 509 288 Hop 2 | . . 1 1 Pick Up . | . . . . Fast Attach 11 | . 4 2 5 Attach . | . . . . Detach . | . . . . Swap 3 | . . . 3 Drop 4 | . 1 . 3 Fire . | . . . . Melee 101 | . 43 38 20 Ram . | . . . . Kick . | . . . . Crush . | . . . . Escape Stasis . | . . . . Rewire . | . . . . Trap . | . . . . Miscellaneous 26 | . 11 15 . Route ------- -11/Scrapyard -10/Materials (discovered 5 exits: *Mat x3 / *Min x2) -10/Mines (discovered 2 exits: *Mat x2) -9/Materials (discovered 2 exits: [*Min] / [*Sto]) History --------- Turn | Location | Event 8 | -11/Scrapyard | Discovered new exit (range 12) 13 | -11/Scrapyard | Entered Materials 31 | -10/Materials | Identified exit to Mines 197 | -10/Materials | Discovered new exit (range 16) 204 | -10/Materials | Identified exit to Materials 204 | -10/Materials | Central database locked down 304 | -10/Materials | Reached level 2 305 | -10/Materials | Upgraded with Weapon slot (x2) 412 | -10/Materials | Entered Mines 435 | -10/Mines | Core integrity fell below 50% 467 | -10/Mines | Received a Mining Laser from a helpful Derelict 482 | -10/Mines | Reached level 3 485 | -10/Mines | Met a Derelict bent on vengeance 486 | -10/Mines | Core integrity fell below 20% 595 | -10/Mines | Discovered exit to Materials (range 14) 613 | -10/Mines | Build established: Hacker-Gladiator 643 | -10/Mines | Learned Materials trap positions 772 | -10/Mines | Entered Materials 773 | -9/Materials | Loaded intel: 20 trap records 773 | -9/Materials | Core integrity fell below 50% 773 | -9/Materials | Core integrity fell below 20% 774 | -9/Materials | Reached level 4 774 | -9/Materials | Upgraded with Propulsion slot (x1) 812 | -9/Materials | Reached level 5 974 | -9/Materials | Discovered new exit (range 14) 978 | -9/Materials | Discovered new exit (range 3) 981 | -9/Materials | Destroyed by Y-45 Defender with Heavy Assault Rifle Last Messages --------------- Trojan loaded successfully. Testing... Disruption routine running. >>Trojan(Botnet) Trojan loaded successfully. Testing... Terminal linked with 0 systems. Awaiting botnet instructions. 00958_ G-34 Mercenary destroyed. 00962_ K-01 Serf collects debris. 00963_ G-34 Mercenary destroyed. 00965_ K-01 Serf collects debris. 00967_ Destroyed Hover Unit. 00967_ W-16 Scout destroyed. 00969_ K-01 Serf collects debris. 00970_ W-16 Scout destroyed. 00970_ K-01 Serf collects debris. 00974_ EXIT=FOUND 00976_ K-01 Serf collects debris. 00978_ EXIT=FOUND Map ----- +----------------------------------------------------+ | ???????????????????? ?# ###%* """"""?? | | ????????????????????#####??# + ! """""??? | | ?????????########??????????# ### """""??? | | ?????????# ########???# #?# | | ?????????# """ ## ##### #?############ | | ########## """ ## *% #????????????? | | # = # """ + % #????????????? | | # # ## !%= #????????????? | | #* # """ ##] ##########!* #????????????? | | # # """ ### ####### ###!%*#????????????? | | # ! # """ #?# #[[[ # ! #????????????? | | # # #?# #[[[ "T"!#== #????????????? | | # # """ #?# #[[[ [%/%% #????????????? | | # # """ #?# # ! =#[ #??????????|?? | | # # """ #?# ##+####+###* ####+## ? | | ?####+#### #?# ? | | ??# ###+####### < ? | | ??# ? | | ??# ######## ####### ######+## ? | | ??# ^ #??????# #######+##????? #??###?? | | ??# ###+#######???# ## #??????#??????? | | ??## ##] #???# ## #?????????????? | | ???# ## #??## ## #?????????????? | | ???# ## """ #??# # #?????????????? | | ???# ## """ #??# # #?????????????? | | ???# ## """ #??# Y@ + #?????????????? | | ???# ##[[[ #??# # #?????????????? | | ???# ##[[[ #??# # #?????????????? | | ???# ##[[[ [ #??# #####+###?????????????? | | ???# ############??# ?????????????????????? | | ???# #?????????????#!!//==?????????????????????? | | ???# ##########????#!!//==#????????????????????? | | ???# #]% #????########????????????????????? | | ???# # #????????????????????????????????? | | ???# # #????????????????????????????????? | | ???# # ]#????????????????????????????????? | | ???# %+! = #????????????????????????????????? | | #??# #% % ! #????????????????????????????????? | | ??# # % #????????????????????????????????? | | ?# # %= #????????????????????????????????? | | ==?# # #????????????????????????????????? | | == # ##+#######????????????????????????????????? | | == # #??????????????????????????????????????? | | + #??????????????????????????????????????? | | # ####???????????????????????????????????? | | "" # #???????????????????????????????????? | | ""?# #???????????????????????????????????? | | R?# #???????????????????????????????????? | | "??# #???????????????????????????????????? | | ??##### ##??????????????????????????????????? | +----------------------------------------------------+ Best States ------------- Heat Dissipation 25 Energy Generation 14 Energy Capacity 280 Matter Stores 300 Matter Capacity 300 Sight Range 16 Terrain Scan Density 10 Armor Coverage 225 Evasion (%) 63 Offensive Hacking 20 Defensive Hacking 15 Item Schematics ----------------- None Robot Schematics ------------------ None Fabricated ------------ Nothing Alien Tech Used ----------------- None Achievements -------------- None Challenges ------------ None RPGLIKE | -11 -10 -10 -9 --------- Run | Yrd Mat Min Mat Levels Raised 4 | . 1 1 2 XP Earned 9773 | 3000 1735 2713 2325 XP Spent 8700 | . 4500 1000 3200 Upgrades 18 | . 10 3 5 Propulsion Slot 1 | . . . 1 Weapon Slot 2 | . 2 . . Mass Support 2 | . . 1 1 Melee Accuracy 6 | . 2 2 2 Hack Attack % 4 | . 4 . . Hack Defense % 3 | . 2 . 1 Protomatter Created 268 | . 92 176 . Integrity Restored 558 | . 234 324 . Core 558 | . 234 324 . Protomatter Decayed . | . . . . Game ------ Seed GravitonScatterExtrapolator Manual? 0 Play Time 00:14:35 Cumulative 171.1 hours Start 2024.08.08 @ 23:23:17 End 2024.08.08 @ 23:35:07 Sessions 1 Manual Loads 0 Difficulty Rogue Special Mode Winter2019/RPGLIKE Game No. 174 Rogue 174 Adventurer 0 Explorer 0 Win Type - Total 13 Types 11/0/0/1/0/0/1/0/0 Lore% 44 Gallery% 62 Achievement% 68 Wizard Run 0 Options --------- Layout 1 ASCII 0 Keyboard 0 Movement Numpad Keybinds 0 Fullscreen 1 Font 24/Smallcaps Map View 50x35 Zoom Use 0% Tactical HUD 1 Map Filters NONE Filters NONE Steam 1 RUN: 0cef26cd-c9e0-45fe-a6f9-f227cf077a20